Cogmind - Beta 11.1 @@@ ROGUE MODE // 2022.11.20 @ 10:59:43 Player: ktur Result: Self-destructed Performance ------------- Evolutions (0) 0 Regions Visited (4) 800 Robots Destroyed (32) 160 Value Destroyed (644) 644 Prototype IDs (42) 840 Alien Tech Used (0) 0 Bonus (160) 160 TOTAL SCORE: 2604 Bonus ------- Follower Combat Kills 25 Aligned with FarCom 300 Friendly Fire -165 Cogmind --------- Core Integrity 135/250 Matter 300/300 Energy 125/125 System Corruption 0% Temperature Cool (0) Movement Treading (320) Ox2 Location -9/Mines Parts ------- > --- POWER (1) -------- Light Ion Engine > --- PROPULSION (2) --- Light Treads Light Treads > --- UTILITY (2) ------ Cooling System Huge Storage Unit > --- WEAPON (2) ------- Particle Cannon Particle Cannon > --- INVENTORY (25) --- Light Nuclear Core Wheel Wheel Flight Unit Flight Unit Flight Unit Cooling System Cooling System Cooling System Medium Storage Unit High-capacity Storage Unit High-capacity Matter Pod (200) Seismic Detector Hacking Suite Particle Cannon Particle Cannon Assault Rifle Light Assault Rifle Rocket Launcher Mini Grenade Launcher Mini Grenade Launcher Mini Grenade Launcher Mini Grenade Launcher Datajack Hammer Peak State ------------ > --- POWER ------------ Light Ion Engine > --- PROPULSION ------- Light Treads Light Treads > --- UTILITY ---------- Cooling System Huge Storage Unit > --- WEAPON ----------- Particle Cannon Particle Cannon > --- INVENTORY -------- Light Ion Engine Light Ion Engine Aluminum Leg Wheel Wheel Flight Unit Flight Unit Flight Unit Flight Unit Flight Unit Flight Unit Medium Storage Unit High-capacity Storage Unit High-capacity Matter Pod Seismic Detector Hacking Suite Light Assault Rifle Light Assault Rifle Light Assault Rifle Light Assault Rifle Mini Grenade Launcher Mini Grenade Launcher Mini Grenade Launcher Mini Grenade Launcher Datajack [Rating: 13] Favorites ----------- Power Light Ion Engine Engine Light Ion Engine Propulsion Light Treads Treads Light Treads Wheel Wheel Utility Huge Storage Unit Device Cooling System Storage Huge Storage Unit Weapon Particle Cannon Energy Gun EM Pulse Gun Energy Cannon Particle Cannon Ballistic Gun Light Assault Rifle Special Melee Weapon Datajack Build | -11 -10 -10 -10 -9 ------- Run | Scr Mat Min Exi Min Slots Evolved . | . . . . . Power . | . . . . . Propulsion . | . . . . . Utility . | . . . . . Weapon . | . . . . . Parts Attached 26 | 6 14 . 4 2 Power 2 | 1 1 . . . Engine 2 | 1 1 . . . Core . | . . . . . Reactor . | . . . . . Propulsion 8 | 2 2 . 2 2 Treads 6 | 2 2 . . 2 Leg . | . . . . . Wheel 2 | . . . 2 . Hover . | . . . . . Flight . | . . . . . Utility 4 | 1 3 . . . Device 2 | . 2 . . . Storage 2 | 1 1 . . . Processor . | . . . . . Hackware . | . . . . . Protection . | . . . . . Artifact . | . . . . . Weapon 12 | 2 8 . 2 . Energy Gun 5 | 2 3 . . . Energy Cannon 3 | . 2 . 1 . Ballistic Gun 3 | . 3 . . . Ballistic Cannon . | . . . . . Launcher . | . . . . . Special Weapon . | . . . . . Impact Weapon . | . . . . . Slashing Weapon . | . . . . . Piercing Weapon . | . . . . . Special Melee Weapon 1 | . . . 1 . Unidentified Prototypes . | . . . . . Parts Lost 4 | . 4 . . . Power 1 | . 1 . . . Propulsion 1 | . 1 . . . Utility 1 | . 1 . . . Weapon 1 | . 1 . . . Highest Loss Streak 1 | . 1 . . . To Critical Strikes . | . . . . . Average Slot Usage (%) 96 | . 92 100 100 100 Engine 13 | . 13 14 14 14 Treads 26 | . 25 28 26 28 Device 12 | . 10 14 14 14 Storage 14 | . 14 14 14 14 Energy Gun 7 | . 15 . . . Energy Cannon 14 | . 3 28 16 28 Ballistic Gun 3 | . 7 . . . Special Melee Weapon 1 | . . . 11 . Naked Turns . | . . . . . Heaviest Build 93 | 14 93 93 93 93 Greatest Support 40 | 40 40 40 40 40 Greatest Overweight (x) 4 | 2 4 2 4 2 Average Overweight (x) 2 | . 2 2 2 2 Largest Inventory Capacity 25 | 8 25 25 25 25 Average Capacity 24 | 7 24 25 25 25 Most Carried 25 | 6 25 25 25 25 Average Carried 20 | 3 16 24 25 24 Final Capacity 25 | 8 25 25 25 25 Final Carried 25 | 6 25 25 25 25 Class Distribution -------------------- 100% | Mutant Dominant Class ---------------- Mutant | -10/Materials Mutant | -10/Mines Mutant | -10/Exiles Mutant | -9/Mines Resources | -11 -10 -10 -10 -9 ----------- Run | Scr Mat Min Exi Min Matter Collected 680 | 226 394 . . 60 Remotely . | . . . . . Salvage Created 1076 | . 752 40 . 284 Parts 66 | . 53 . . 13 Haulers Intercepted 2 | . 2 . . . Recyclers Shooed . | . . . . . Parts Field Recycled . | . . . . . Retrieved Matter . | . . . . . Parts Self-Destructed . | . . . . . Prevented . | . . . . . Kills | -11 -10 -10 -10 -9 ------- Run | Scr Mat Min Exi Min Combat Hostiles Destroyed 23 | . 17 2 . 4 Guns 16 | . 16 . . . Cannons 6 | . . 2 . 4 Classes Destroyed 10 | . 7 1 . 2 Worker 1 | . 1 . . . Builder 1 | . 1 . . . Hauler 2 | . 2 . . . Recycler 1 | . . . . 1 Operator 2 | . 2 . . . Watcher 3 | . 3 . . . Swarmer 8 | . 8 . . . Grunt 13 | . 9 . . 4 Duelist 1 | . . . . 1 Assembled 2 | . . 2 . . Best Kill Streak 4 | . 4 2 . 3 Combat Bots Only 3 | . 3 2 . 2 Max Kills in Single Turn 2 | . 1 1 . 2 Gunslinging . | . . . . . Exploded . | . . . . . Melee . | . . . . . Uniques/NPCs Destroyed . | . . . . . Combat | -11 -10 -10 -10 -9 -------- Run | Scr Mat Min Exi Min Damage Taken 671 | . 644 15 . 12 Core 115 | . 100 15 . . Absorbed by Shields . | . . . . . Regen/Repaired (Parts) 114 | . 114 . . . Core Remaining (%) 100 | 100 . . . . Volleys Fired 101 | . 80 11 3 7 Largest 2 | . 2 2 1 2 Hottest 136 | . 80 136 68 136 Shots Fired 183 | . 144 22 3 14 Gun 144 | . 144 . . . Cannon 39 | . . 22 3 14 Launcher . | . . . . . Special . | . . . . . Kinetic 46 | . 46 . . . Thermal 62 | . 23 22 3 14 Explosive . | . . . . . Electromagnetic 75 | . 75 . . . Robot Hit Streak 15 | . 15 4 . 4 Robot Miss Streak 6 | . 6 2 . 1 Penetration Max . | . . . . . Secondary Targets 1 | . 1 . . . Max Gunslinging Chain 1 | . 1 . . . Shots Hit Robots 110 | . 89 7 4 10 Core Hits 44 | . 36 2 . 6 Critical Kills . | . . . . . Critical Parts Destroyed . | . . . . . Critical Strikes 1 | . 1 . . . Corrupt 1 | . 1 . . . Melee Attacks 4 | . . . 4 . Impact . | . . . . . Slashing . | . . . . . Piercing . | . . . . . Sneak Attacks 4 | . . . 4 . Combat Hostiles . | . . . . . Follow-up Attacks . | . . . . . Damage Inflicted 1549 | . 1178 125 . 246 Guns 1110 | . 1110 . . . Cannons 360 | . . 121 . 239 Explosions 23 | . 23 . . . Melee . | . . . . . Ramming 56 | . 45 4 . 7 Kinetic 191 | . 191 . . . Thermal 577 | . 217 121 . 239 Explosive . | . . . . . Electromagnetic 725 | . 725 . . . Impact . | . . . . . Slashing . | . . . . . Piercing . | . . . . . Highest Corruption . | . . . . . Average Corruption . | . . . . . Corruption Purged . | . . . . . Corruption Blocked . | . . . . . Overload Shots . | . . . . . Overflow Damage 6 | . . 6 . . Projectiles 6 | . . 6 . . Explosions . | . . . . . Melee . | . . . . . Knockbacks . | . . . . . Impact . | . . . . . Kinetic . | . . . . . Secondary . | . . . . . Self-Inflicted Damage . | . . . . . Shots . | . . . . . Rammed 9 | . 5 1 . 3 Targets Rammed 11 | . 6 1 . 4 Kicked . | . . . . . Crushed 2 | . 1 . . 1 Highest Temperature 162 | . 162 27 . 33 Average Temperature 36 | . 50 11 . 14 Received Heat Transfer 168 | . 162 . . 6 Siege Activations . | . . . . . Robots Corrupted 2 | . 2 . . . Combat Hostiles 1 | . 1 . . . Parts Fried 5 | . 5 . . . Impact Corruptions . | . . . . . Robots Melted . | . . . . . Combat Hostiles . | . . . . . Parts Melted 1 | . . . . 1 Heat Transferred 1079 | . 450 222 . 407 Parts Sabotaged . | . . . . . Parts Stolen . | . . . . . Parts Stripped . | . . . . . Power Chain Reactions 1 | . 1 . . . Missiles Intercepted . | . . . . . Alert | -11 -10 -10 -10 -9 ------- Run | Scr Mat Min Exi Min Peak Influence 190 | . 190 41 . 122 Initial 41 | . . 41 . . Average 49 | . 76 11 . 19 Maximum Alert Level . | . . . . . Low Security (%) 100 | 100 100 100 . 100 Level 1 . | . . . . . Level 2 . | . . . . . Level 3 . | . . . . . Level 4 . | . . . . . Level 5 . | . . . . . High Security . | . . . . . Max Security . | . . . . . Squads Dispatched 4 | . 4 . . . Investigation 2 | . 2 . . . Extermination . | . . . . . Reinforcement 2 | . 2 . . . Assault . | . . . . . Garrison . | . . . . . Intercept . | . . . . . Searches Triggered . | . . . . . Construction Impeded . | . . . . . Haulers Reinforced . | . . . . . Active Scanning Responses . | . . . . . Cargo Convoy Interrupts . | . . . . . Stealth | -11 -10 -10 -10 -9 --------- Run | Scr Mat Min Exi Min Distress Signals 1 | . 1 . . . Communications Jammed . | . . . . . Distress Signals . | . . . . . Times Spotted 36 | . 30 2 . 4 Peak Tracking Total 9 | . 3 2 9 3 Tactical Retreats 1 | . 1 . . . Traps | -11 -10 -10 -10 -9 ------- Run | Scr Mat Min Exi Min Traps Triggered . | . . . . . Indirectly . | . . . . . Trap Hack Attempts . | . . . . . Triggered . | . . . . . Disarmed . | . . . . . Reprogrammed . | . . . . . Reused . | . . . . . Traps Extracted . | . . . . . Installed . | . . . . . Triggered . | . . . . . Machines | -11 -10 -10 -10 -9 ---------- Run | Scr Mat Min Exi Min Machines Disabled 3 | . . . 3 . Max in Single Turn 1 | . . . 1 . Machines Sabotaged . | . . . . . Garrisons Compromised . | . . . . . Overloaded Fab Kills . | . . . . . Hacking | -11 -10 -10 -10 -9 --------- Run | Scr Mat Min Exi Min Machines Accessed 11 | . 8 . 2 1 Terminals 5 | . 5 . . . Fabricators . | . . . . . Repair Stations 1 | . 1 . . . Recycling Units 2 | . 2 . . . Scanalyzers . | . . . . . Garrison Access . | . . . . . Total Hacks 25 | . 22 . 2 1 Successful 20 | . 17 . 2 1 Failed 4 | . 4 . . . Catastrophic 1 | . 1 . . . Database Lockouts 1 | . 1 . . . Manual 13 | . 12 . 1 . Terminals 17 | . 17 . . . Fabricators . | . . . . . Repair Stations 2 | . 2 . . . Recycling Units 3 | . 3 . . . Scanalyzers . | . . . . . Garrison Access . | . . . . . Terminal Hacks 14 | . 11 . 2 1 Record 1 | . . . 1 . Robot Analysis 2 | . 2 . . . Prototype ID Bank 3 | . 3 . . . Open Door 1 | . . . . 1 Unreport Threat 1 | . 1 . . . Locate Traps 1 | . 1 . . . Maintenance Status 1 | . 1 . . . Patrol Status 1 | . 1 . . . Transport Status 1 | . 1 . . . Hauler Manifests 1 | . 1 . . . EX-Prototype ID Bank 1 | . . . 1 . Fabricator Hacks . | . . . . . Repair Station Hacks 2 | . 2 . . . Scan Component 1 | . 1 . . . Repair 1 | . 1 . . . Recycling Unit Hacks . | . . . . . Scanalyzer . | . . . . . Garrison Access Hacks . | . . . . . Unauthorized Hacks 4 | . 4 . . . Terminals 2 | . 2 . . . Botnet 1 | . 1 . . . Operators 1 | . 1 . . . Fabricators . | . . . . . Repair Stations . | . . . . . Recycling Units 2 | . 2 . . . Tunnel 2 | . 2 . . . Scanalyzers . | . . . . . Garrison Access . | . . . . . Data Cores Recovered . | . . . . . Used . | . . . . . Hacking Detections 5 | . 5 . . . Full Trace Events 2 | . 2 . . . Feedback Events . | . . . . . Feedback Blocked . | . . . . . Robot Schematics Acquired . | . . . . . Robots Built . | . . . . . Authchips . | . . . . . Time . | . . . . . Total Robot Build Rating . | . . . . . Part Schematics Acquired . | . . . . . Parts Built . | . . . . . Authchips . | . . . . . Time . | . . . . . Total Part Build Rating . | . . . . . Parts Repaired 1 | . 1 . . . Time 26 | . 26 . . . Parts Recycled . | . . . . . Recycled Matter . | . . . . . Retrieved Matter . | . . . . . Retrieved Components . | . . . . . Parts Scanalyzed . | . . . . . Part Schematics Acquired . | . . . . . Parts Damaged . | . . . . . Bothacking | -11 -10 -10 -10 -9 ------------ Run | Scr Mat Min Exi Min Used RIF Installer . | . . . . . Robots Hacked 4 | . . . 4 . Non-combat 3 | . . . 3 . Combat 1 | . . . 1 . Robot Hacks Applied 4 | . . . 4 . parse_system 4 | . . . 4 . Relay Couplers Released . | . . . . . Fabnet Peak Effective % . | . . . . . Robots Rewired . | . . . . . Allies Hacked . | . . . . . Hacks Repelled . | . . . . . Allies | -11 -10 -10 -10 -9 -------- Run | Scr Mat Min Exi Min Total Allies 4 | . . 3 . 1 Largest Group 3 | . . 3 3 3 Highest-Rated Group 40 | . . 40 40 40 Highest-Rated Ally 31 | . . 16 16 31 Total Orders 2 | . . . 1 1 STAY 2 | . . . 1 1 Ally Attacks 19 | . . . . 19 Total Damage 241 | . . . . 241 Kills 2 | . . . . 2 Allies Corrupted . | . . . . . Allies Melted . | . . . . . Intel | -11 -10 -10 -10 -9 ------- Run | Scr Mat Min Exi Min Robot Analysis Total 2 | . 2 . . . Derelict Logs Recovered 3 | . . 2 . 1 Drone Launches . | . . . . . Drone Recoveries . | . . . . . Exploration | -11 -10 -10 -10 -9 ------------- Run | Scr Mat Min Exi Min Turns Passed 7528 | 81 3718 1624 1071 1034 Spaces Moved 2191 | 47 1018 495 342 289 Core 12 | 12 . . . . Treads 2155 | 35 1018 495 318 289 Legs . | . . . . . Wheels 24 | . . . 24 . Hover . | . . . . . Flight . | . . . . . Fastest Speed 50 | 50 160 320 140 320 Average Speed 317 | 142 328 320 307 320 Slowest Speed 480 | 160 480 320 320 320 Overloaded Moves . | . . . . . Propulsion Burnouts . | . . . . . Robots Hopped . | . . . . . Cave-ins Triggered . | . . . . . Exploration Rate (%) 63 | 4 98 93 71 51 Regions Visited 4 Branch Regions 3 Pre-discovered Areas 3 | . 2 . 1 . Known Exits Taken . | . . . . . Unknown Exits Taken 4 | 1 1 1 1 . Scrap Searched 4 | . . 3 . 1 Spaces Dug . | . . . . . Terrain Destroyed 6 | . 6 . . . Melee . | . . . . . Projectile . | . . . . . AOE 6 | . 6 . . . Terrain Rammed . | . . . . . Walls Destroyed . | . . . . . Machines Disabled . | . . . . . Actions | -11 -10 -10 -10 -9 --------- Run | Scr Mat Min Exi Min Total 2548 | 58 1247 514 355 374 Wait 168 | . 93 2 3 70 Move 2187 | 46 1017 494 341 289 Hop . | . . . . . Pick Up 37 | 6 27 3 . 1 Fast Attach 14 | 6 8 . . . Attach 1 | . 1 . . . Detach . | . . . . . Swap 11 | . 5 . 4 2 Drop 14 | . 10 3 . 1 Fire 101 | . 80 11 3 7 Melee 4 | . . . 4 . Ram . | . . . . . Kick . | . . . . . Crush 11 | . 6 1 . 4 Escape Stasis . | . . . . . Rewire . | . . . . . Trap . | . . . . . Miscellaneous . | . . . . . Route ------- -11/Scrapyard -10/Materials (discovered 5 exits: [*Mat x3] / [*Min x2]) -10/Mines (discovered 3 exits: [*Mat x2] / *Exi) -10/Exiles -9/Mines History --------- Turn | Location | Event 19 | -11/Scrapyard | Discovered new exit (range 16) 82 | -11/Scrapyard | Entered Materials 110 | -10/Materials | Discovered new exit (range 15) 301 | -10/Materials | Build established: Mutant 429 | -10/Materials | Discovered new exit (range 15) 497 | -10/Materials | Central database locked down 594 | -10/Materials | Discovered new exit (range 15) 1919 | -10/Materials | Discovered new exit (range 15) 2523 | -10/Materials | Repaired Lgt. Treads 2918 | -10/Materials | Discovered new exit (range 9) 3800 | -10/Materials | Entered Mines 3813 | -10/Mines | Met a Derelict bent on vengeance 3842 | -10/Mines | Deemed a non-threat by the Exiles lab entrance 3944 | -10/Mines | Discovered new exit (range 3) 4128 | -10/Mines | Received a Rocket Launcher from a helpful Derelict 4324 | -10/Mines | Learned Materials security intel 4432 | -10/Mines | Learned 8 Materials zone layouts 4592 | -10/Mines | Discovered new exit (range 14) 4718 | -10/Mines | Excavation squad dispatched 4718 | -10/Mines | A large section of the Mines collapsed 4960 | -10/Mines | Assisted by bots powering up and referring to "LRC-V3" 5411 | -10/Mines | Discovered new exit (range 5) 5424 | -10/Mines | Entered Exiles 5424 | -10/Exiles | Accompanied by 3 allies 5504 | -10/Exiles | Met 8R-AWN 5568 | -10/Exiles | Met EX-HEX 5749 | -10/Exiles | Met EX-DEC 5837 | -10/Exiles | Learned location of Zion (-6) 5923 | -10/Exiles | Met EX-BIN 5973 | -10/Exiles | Aligned with FarCom system 5976 | -10/Exiles | Given EX-Vault access code 6059 | -10/Exiles | Opened EX-Vault 6126 | -10/Exiles | Warned to stay clear of 0b10 Research branches 6357 | -10/Exiles | Discovered new exit (range 14) 6466 | -10/Exiles | Attacked by the Exiles 6495 | -10/Exiles | Entered Mines 6495 | -9/Mines | Accompanied by 3 allies 6553 | -9/Mines | Learned location of 2 exits from Materials 7204 | -9/Mines | Received a Mining Laser from a helpful Derelict 7366 | -9/Mines | Met a Derelict who couldn't figure out how to use a Trap Extractor 7529 | -9/Mines | Self-destructed Last Messages --------------- here?" 07204_ B4-T8P(g): "And why aren't you carrying a mining laser?! Certainly you don't want THEM to uncover you when the ceiling comes crashing down? Here, take my spare." 07207_ B4-T8P(g): "You're apparently new around these parts, I'll cover you." 07209_ B4-T8P(g): "Mining lasers are a lot more useful than you might think..." 07265_ Slammed into R-06 Scavenger. 07365_ Connecting with SHOP.Sys... 07365_ Current location identified: Mines >>Open Door Sealed Doors opened. 07366_ V6-P3B(g): "So I found this thing but I have no idea how to use it. And who the hell trapped this place to begin with?!" 07366_ V6-P3B(g): "I give up! Here you try, I'm outta here before something nasty happens..." 07366_ Tosses Imp. Trap Extractor to the ground. 07473_ B4-T8P(g): "You look like you can take it from here!" 07473_ B4-T8P(g) slips back into the shadows. Map ----- +----------------------------------------------------+ | ???????????????????????????????? | | ???????????????????????????????? | | ???????????????????????????????? | | ???????????????????????????????? | | ???????????????????????????????? | | ???????????????????????????????? | | ???????????????????????????????? | | ???????????????????? ???????? | | ???????????????????? ???????? | | ???????????????????? ???????? | | ???????????????????? ???????? | | ???????????????????? ???????? | | ???????????????????? ???????? | | ????????????????????# ???????? | | ????????????????????# ???????? | | ???????????????????## ???????? | | ???????????????????? #???????? | | ????????????????????# #???????? | | ?????######?????????# #???????? | | ????##""""##????????# #???????? | | ????#"!!]!"#????????# #####?### | | ????#"!!^!"#????????# %*%!]### | | ?#####^^^^#######???# ###!%% | | ?# ##!*## #???# #?#%## | | ?# X #???# #?# ### | | ?# @ ##### #?# ### | | ?# ## #?# | | ?# #####?# ## | | ?# ## ####### ## # | | ?# # ## ##### | | ?# # ## #???? | | ?# g # """ ## #???? | | ?# # """ ## #??## | | ?# # """ ## ### | | ?# # ## | | ?# # """ # | | ?################ """ # | | ????????????????# """ ## | | ????????????????# #### | | ????????????????# #??## # | | ????????????????#########????### | | ???????????????????????????????? | | ???????????????????????????????? | | ???????????????????????????????? | | ???????????????????????????????? | | ???????????????????????????????? | | | | | | | | | +----------------------------------------------------+ Best States ------------- Heat Dissipation 47 Energy Generation 10 Energy Capacity 250 Matter Stores 300 Matter Capacity 300 Sight Range 16 Terrain Scan Density 10 Evasion (%) 40 Recoil Reduction 2 Item Schematics ----------------- None Robot Schematics ------------------ None Fabricated ------------ Nothing Alien Tech Used ----------------- None Achievements -------------- None Challenges ------------ None Game ------ Seed BiometalNeutrinoReactor Manual? 0 Play Time 00:16:17 Cumulative 581.6 hours Start 2022.11.17 @ 16:11:46 End 2022.11.20 @ 10:59:43 Sessions 3 Manual Loads 0 Difficulty Rogue Special Mode None Game No. 523 Rogue 523 Adventurer 0 Explorer 0 Win Type - Total 27 Types 14/2/7/2/0/0/1/1/0 Lore% 94 Gallery% 94 Achievement% 80 Wizard Run 0 Options --------- ASCII 0 Keyboard 0 Movement Arrows Keybinds 0 Fullscreen 1 Font 18/Smallcaps Map View 76x50 Tactical HUD 1 Map Filters NONE Filters NONE Steam 1 RUN: 186875f0-69f0-452d-9a91-c2a8d74deb22